bitfinex/quotes_BTCUSD_20240723
["timestamp","ask_amount","ask_price","bid_price","bid_amount"]
[1721756111756,1.061697,65932.0,65931.0,0.000913]
[1721756111965,1.061697,65932.0,65931.0,0.001913]
[1721756111966,1.365039,65932.0,65931.0,0.001913]
[1721756112096,1.465039,65932.0,65931.0,0.001913]
[1721756112306,1.61205891,65932.0,65931.0,0.001913]
[1721756112504,2.72940091,65932.0,65931.0,0.001913]
[1721756112710,1.61605891,65932.0,65931.0,0.001913]
[1721756113738,2.44605891,65932.0,65931.0,0.000913]
[1721756113979,2.46005891,65932.0,65931.0,0.000913]
[1721756114226,2.313039,65932.0,65931.0,0.000913]
[1721756114432,2.299039,65932.0,65931.0,0.000913]
[1721756114602,2.313039,65932.0,65931.0,0.000913]
[1721756114935,2.299039,65932.0,65931.0,0.000913]
[1721756115360,2.313039,65932.0,65931.0,0.000913]
[1721756115566,0.772355,65932.0,65931.0,0.000913]
[1721756115755,0.786355,65932.0,65931.0,0.000913]
[1721756116161,0.799355,65932.0,65931.0,0.000913]
[1721756116476,0.786355,65932.0,65931.0,0.000913]
[1721756116923,0.796355,65932.0,65931.0,0.000913]
[1721756117280,0.786355,65932.0,65931.0,0.000913]
[1721756117743,0.759355,65932.0,65931.0,0.000913]
[1721756118039,0.759355,65932.0,65931.0,0.001913]
[1721756118040,0.773355,65932.0,65931.0,0.001913]
[1721756118286,0.773355,65932.0,65931.0,0.000913]
[1721756118287,0.759355,65932.0,65931.0,0.000913]
[1721756118668,0.764355,65932.0,65931.0,0.001913]
[1721756118993,0.758355,65932.0,65931.0,0.000913]
[1721756119383,0.758355,65932.0,65931.0,0.082513]
[1721756119384,0.004,65932.0,65931.0,0.082513]
[1721756119591,0.1,65946.0,65932.0,0.002794]
[1721756119808,0.151664,65935.0,65932.0,0.002794]
[1721756120004,0.151661,65937.0,65932.0,0.002794]
[1721756120204,0.151661,65937.0,65933.0,0.09398151]
[1721756120405,0.151664,65935.0,65933.0,0.09398151]
[1721756120622,0.1,65946.0,65933.0,0.09398151]
[1721756120623,0.303294,65943.0,65933.0,0.09398151]
[1721756120824,0.151665,65935.0,65933.0,0.09398151]
[1721756120949,0.151662,65936.0,65933.0,0.09398151]
[1721756121157,0.151662,65936.0,65934.0,0.08831236]
[1721756121559,0.151662,65936.0,65935.0,0.023]
[1721756121965,0.454986,65936.0,65935.0,0.023]
[1721756122376,0.151662,65936.0,65935.0,0.023]
[1721756123180,0.152662,65936.0,65935.0,0.027]
[1721756123437,0.001,65936.0,65935.0,0.37306884]
[1721756123645,0.001,65936.0,65935.0,0.93033203]
[1721756123978,0.001,65936.0,65935.0,1.55905903]
[1721756124183,0.001,65936.0,65935.0,1.56105903]
[1721756124332,0.001,65936.0,65935.0,1.86438803]
[1721756124516,0.001,65936.0,65935.0,1.56105903]
[1721756124719,0.001,65936.0,65935.0,1.86938482]
[1721756125350,0.303279,65946.0,65941.0,0.15165]
[1721756125546,0.30410714,65952.0,65943.0,0.1392]
[1721756125547,0.151632,65949.0,65943.0,0.1392]
[1721756125704,0.303257,65951.0,65943.0,0.1392]
[1721756125705,0.303256,65951.0,65944.0,0.326286]
[1721756125904,0.00085514,65952.0,65945.0,0.151641]
[1721756126129,0.00085514,65952.0,65943.0,0.28621991]
[1721756126130,0.30326,65950.0,65946.0,0.023]
[1721756126369,0.303269,65948.0,65947.0,0.06580113]
[1721756126600,0.151632,65949.0,65947.0,0.08880113]
[1721756126743,0.303257,65951.0,65947.0,0.08880113]
[1721756126744,0.151634,65948.0,65947.0,0.08880113]
[1721756126944,0.454892,65950.0,65947.0,0.08880113]
[1721756127140,0.162632,65949.0,65948.0,0.023]
[1721756127397,0.162632,65949.0,65948.0,0.1060946]
[1721756127584,0.00085514,65952.0,65948.0,0.1060946]
[1721756127585,0.00085514,65952.0,65948.0,0.326268]
[1721756127791,0.009,65949.0,65948.0,0.477901]
[1721756127967,0.009,65949.0,65948.0,0.174634]
[1721756128367,0.163632,65949.0,65948.0,0.023]
[1721756128587,0.30410714,65952.0,65946.0,0.023]
[1721756128805,0.151632,65949.0,65947.0,0.06580073]
[1721756129025,0.001,65949.0,65948.0,0.03]
[1721756129464,0.001,65949.0,65948.0,0.181634]
[1721756129673,0.09585514,65960.0,65948.0,0.27993138]
[1721756129966,0.151623,65953.0,65949.0,0.31990868]
[1721756130146,0.151623,65953.0,65950.0,0.12591147]
[1721756130358,0.151623,65953.0,65951.0,0.12870547]
[1721756130502,0.151621,65954.0,65951.0,0.002794]
[1721756130710,0.151623,65953.0,65952.0,0.09475521]
[1721756130908,0.151621,65954.0,65952.0,0.09475521]
[1721756131118,0.151621,65954.0,65953.0,0.002794]
[1721756131876,0.01108735,65954.0,65953.0,0.315917]
[1721756131996,0.01108735,65954.0,65953.0,0.1615]
[1721756132197,0.303217,65960.0,65953.0,0.58098731]
[1721756132587,0.4688,65961.0,65954.0,0.27570862]
[1721756132693,0.4688,65961.0,65955.0,0.303236]
[1721756132899,0.151605,65961.0,65957.0,0.151613]
[1721756133109,0.151607,65960.0,65958.0,0.14255832]
[1721756133308,0.154607,65960.0,65958.0,0.11955832]
[1721756133569,0.003,65960.0,65959.0,0.023]
[1721756133775,0.003,65960.0,65959.0,0.025794]
[1721756133996,0.003,65960.0,65959.0,0.58538602]
[1721756134190,0.003,65960.0,65959.0,0.12776502]
[1721756134351,0.003,65960.0,65959.0,0.28240588]
[1721756134550,0.003,65960.0,65959.0,0.13079688]
[1721756134869,0.00083,65961.0,65959.0,0.13255902]
[1721756135077,0.151607,65960.0,65959.0,0.027794]
[1721756135290,0.151607,65960.0,65959.0,0.025]
[1721756135454,0.151607,65960.0,65959.0,0.002]
[1721756135651,0.758035,65960.0,65959.0,0.002]
[1721756135861,0.758035,65960.0,65959.0,0.007]
[1721756136113,0.454821,65960.0,65959.0,0.03]
[1721756136621,0.00083,65961.0,65959.0,0.028]
[1721756136829,0.00083,65961.0,65960.0,0.177401]
[1721756137037,0.00083,65961.0,65957.0,0.454839]
[1721756137038,0.151206,65958.0,65957.0,0.454839]
[1721756137449,0.151206,65958.0,65957.0,0.151613]
[1721756138050,0.302817,65958.0,65953.0,0.55798631]
[1721756138269,0.302817,65958.0,65954.0,0.29863891]
[1721756138631,0.302817,65958.0,65957.0,0.45484]
[1721756138632,0.151206,65958.0,65957.0,0.45484]
[1721756139169,0.152206,65958.0,65957.0,0.48484]
[1721756140284,0.152206,65958.0,65957.0,0.63185991]
[1721756140521,0.152206,65958.0,65957.0,1.08604956]
[1721756140694,0.152206,65958.0,65957.0,0.78282256]
[1721756141237,0.16301677,65958.0,65957.0,0.78282256]
[1721756141876,0.152206,65958.0,65957.0,0.78282256]
[1721756142489,0.16301677,65958.0,65957.0,0.034]
[1721756143050,0.16301677,65958.0,65957.0,0.185613]
[1721756143256,0.16301677,65958.0,65957.0,0.034]
[1721756143613,0.16301677,65958.0,65957.0,0.185613]
[1721756144648,0.16301677,65958.0,65957.0,0.48884]
[1721756144824,0.16301677,65958.0,65957.0,0.185613]
[1721756145599,0.16301677,65958.0,65957.0,0.48884]
[1721756145732,0.16301677,65958.0,65957.0,1.03566806]
[1721756146076,0.16301677,65958.0,65957.0,2.38251327]
[1721756146077,0.128206,65958.0,65957.0,2.38251327]
[1721756146288,0.128206,65958.0,65957.0,3.16180663]
[1721756146500,0.128206,65958.0,65957.0,4.66180663]
[1721756146908,0.002834,65980.0,65979.0,0.151563]
[1721756147108,4e-05,65980.0,65979.0,1.0649804]
[1721756147351,4e-05,65980.0,65979.0,1.5181064]
[1721756147513,4e-05,65980.0,65979.0,1.6596064]
[1721756147740,4e-05,65980.0,65979.0,1.69674858]
[1721756148063,4e-05,65980.0,65979.0,1.7384175]
[1721756148349,0.00854,65994.0,65993.0,0.211731]
[1721756148550,0.00854,65994.0,65993.0,0.20721991]
[1721756148753,0.02478419,65994.0,65993.0,0.20721991]
[1721756148957,0.303067,65992.0,65987.0,0.0602]
[1721756149098,0.303071,65991.0,65988.0,0.12582904]
[1721756149296,0.303071,65991.0,65982.0,0.303109]
[1721756149297,0.07348942,65989.0,65980.0,0.0602]
[1721756149498,0.454675,65981.0,65980.0,0.14701991]
[1721756149698,0.151561,65980.0,65979.0,0.011]
[1721756149897,0.07348942,65989.0,65975.0,0.0632]
[1721756149898,0.01624419,65981.0,65975.0,0.366342]
[1721756150991,0.151554,65983.0,65979.0,0.47154456]
[1721756151193,0.151554,65983.0,65980.0,0.13710186]
[1721756151368,0.0163885,65982.0,65980.0,0.13710186]
[1721756151602,0.151558,65981.0,65980.0,0.2629442]
[1721756151792,0.454675,65981.0,65980.0,0.14884234]
[1721756152236,0.7741805,65981.0,65980.0,0.023]
[1721756152374,0.454683,65980.0,65979.0,0.013]
[1721756152741,1.060927,65980.0,65979.0,0.013]
[1721756152866,1.4449375,65980.0,65979.0,0.007]
[1721756153301,1.061007,65975.0,65974.0,0.382]
[1721756153505,1.061007,65975.0,65974.0,0.44779794]
[1721756153870,1.0773955,65975.0,65974.0,0.44779794]
[1721756154083,0.7742505,65975.0,65974.0,0.44779794]
[1721756154503,1.0773955,65975.0,65974.0,0.44779794]
[1721756154710,1.0773955,65975.0,65974.0,0.382]
[1721756154931,1.0833955,65975.0,65974.0,0.382]
[1721756155144,0.7802505,65975.0,65974.0,0.405]
[1721756155355,1.1608955,65975.0,65974.0,0.382]
[1721756155574,1.061053,65972.0,65971.0,0.7715]
[1721756155925,1.364211,65972.0,65971.0,0.108]
[1721756156142,0.0792885,65972.0,65952.0,0.0642]
[1721756156341,0.0792885,65972.0,65944.0,0.2]
[1721756156342,0.151627,65951.0,65950.0,0.108]
[1721756156563,0.454882,65951.0,65950.0,0.108]
[1721756156765,1.364647,65951.0,65950.0,0.108]
[1721756156940,1.3810355,65951.0,65950.0,0.108]
[1721756157139,1.3810355,65951.0,65944.0,0.6635]
[1721756157140,0.151659,65937.0,65936.0,0.0771]
[1721756157339,0.151659,65937.0,65936.0,0.21725002]
[1721756157565,0.454978,65937.0,65936.0,0.21725002]
[1721756157976,0.4713665,65937.0,65936.0,0.21725002]
[1721756158376,0.1680475,65937.0,65936.0,0.21725002]
[1721756158609,0.4713665,65937.0,65936.0,0.21725002]
[1721756158810,0.0163885,65937.0,65936.0,0.21725002]
[1721756159335,0.1680475,65937.0,65936.0,0.21725319]
[1721756159511,0.0163885,65937.0,65936.0,0.5419351]
[1721756159645,0.0163885,65937.0,65936.0,0.3872731]
[1721756159846,0.303283,65945.0,65936.0,0.3872731]
[1721756160098,0.758287,65938.0,65937.0,0.14893189]
[1721756160328,0.4688,65952.0,65936.0,0.004]
[1721756160329,1.061616,65937.0,65936.0,0.004]
[1721756160531,1.464935,65937.0,65936.0,0.004]
[1721756160906,0.758355,65932.0,65931.0,0.000913]
[1721756161108,1.061697,65932.0,65931.0,0.000913]
[1721756161321,1.365039,65932.0,65931.0,0.000913]
[1721756161972,1.061697,65932.0,65931.0,0.000913]
[1721756162752,1.061697,65932.0,65931.0,0.00085754]
[1721756164003,1.365039,65932.0,65931.0,0.00085754]
[1721756164435,2.11340091,65932.0,65931.0,0.00185754]
[1721756164788,1.76005891,65932.0,65931.0,0.00185754]
[1721756164988,2.11740091,65932.0,65931.0,0.00185754]
[1721756165233,1.76405891,65932.0,65931.0,0.00185754]
[1721756165647,0.769355,65932.0,65931.0,0.00185754]
[1721756165819,0.762355,65932.0,65931.0,0.00085754]
[1721756166426,0.772355,65932.0,65931.0,0.00185754]
[1721756166627,0.758355,65932.0,65931.0,0.00085754]
[1721756167039,0.758355,65932.0,65931.0,0.00285754]
[1721756167040,0.783355,65932.0,65931.0,0.00285754]
[1721756167428,0.467013,65932.0,65931.0,0.00085754]
[1721756167839,0.017,65932.0,65931.0,0.00085754]
[1721756168045,0.007,65932.0,65931.0,0.90624445]
[1721756168277,0.007,65932.0,65931.0,1.56471105]
[1721756168489,0.007,65932.0,65931.0,1.61471105]
[1721756168689,0.007,65932.0,65931.0,1.51471105]
[1721756169023,0.007,65932.0,65931.0,1.0339416]
[1721756169224,0.007,65932.0,65931.0,0.30717745]
[1721756169426,0.007,65932.0,65931.0,0.02385754]
[1721756169427,0.457013,65932.0,65931.0,0.02385754]
[1721756169744,0.4710373,65932.0,65931.0,0.03085754]
[1721756169921,0.4710373,65932.0,65931.0,0.18253054]
[1721756169922,0.0170243,65932.0,65931.0,0.18253054]
[1721756170125,0.1686953,65932.0,65931.0,0.00785754]
[1721756170325,0.7753793,65932.0,65931.0,0.00785754]
[1721756170708,0.7773793,65932.0,65931.0,0.01885754]
[1721756170911,0.4750373,65932.0,65931.0,0.02985754]
[1721756171108,0.7783793,65932.0,65931.0,0.02985754]
[1721756171311,0.7783793,65932.0,65931.0,0.03885754]
[1721756171933,0.7783793,65932.0,65931.0,0.07217329]
[1721756171934,0.1716953,65932.0,65931.0,0.07217329]
[1721756172837,0.0200243,65932.0,65931.0,0.07217329]
[1721756173086,0.0200243,65932.0,65931.0,0.22384629]
[1721756173319,0.0200243,65932.0,65931.0,0.9775602]
[1721756173545,0.004,65932.0,65931.0,0.20350856]
[1721756173973,0.155671,65932.0,65931.0,0.19319281]
[1721756174186,0.17167583,65932.0,65931.0,0.19319281]
[1721756174791,0.02000483,65932.0,65931.0,0.19319281]
[1721756174990,0.47501783,65932.0,65931.0,0.0461729]
[1721756175839,0.77835983,65932.0,65931.0,0.0461729]
[1721756176386,0.17167583,65932.0,65931.0,0.0461729]
[1721756176596,0.47501783,65932.0,65931.0,0.0461729]
[1721756176972,0.02000483,65932.0,65931.0,0.0461729]
[1721756177177,0.17167583,65932.0,65931.0,0.0461729]
[1721756177788,0.47501783,65932.0,65931.0,0.0461729]
[1721756178176,0.02000483,65932.0,65931.0,0.0461729]
[1721756178346,0.17167583,65932.0,65931.0,0.0461729]
[1721756180001,0.47501783,65932.0,65931.0,0.0461729]
[1721756180252,0.17167583,65932.0,65931.0,0.0461729]
[1721756180706,0.01992673,65932.0,65931.0,0.10272499]
[1721756180908,0.01992673,65932.0,65931.0,0.25439799]
[1721756181111,0.0039219,65932.0,65931.0,0.55774499]
[1721756181314,0.0039219,65932.0,65931.0,1.0081119]
[1721756181530,0.0039219,65932.0,65931.0,0.51228164]
[1721756181699,0.0039219,65932.0,65931.0,0.3863449]
[1721756182102,0.17138567,65932.0,65931.0,0.3863449]
[1721756182301,0.01971467,65932.0,65931.0,0.3107449]
[1721756182641,0.01971467,65932.0,65931.0,1.0691119]
[1721756182777,0.060742,65948.0,65931.0,0.74003203]
[1721756182778,0.27881367,65941.0,65931.0,0.74003203]
[1721756182983,0.27881367,65941.0,65933.0,0.303336]
[1721756183198,0.27881367,65941.0,65932.0,0.22794333]
[1721756183199,0.151662,65936.0,65934.0,0.12593475]
[1721756183400,0.151656,65939.0,65935.0,0.023]
[1721756183628,0.303293,65943.0,65936.0,0.151661]
[1721756183629,0.151651,65941.0,65936.0,0.151661]
[1721756183828,0.07421868,65950.0,65935.0,0.08747069]
[1721756183829,0.1482,65954.0,65938.0,0.082]
[1721756184026,0.07348942,65964.0,65935.0,0.08747069]
[1721756184027,0.1482,65952.0,65935.0,0.08747069]
[1721756184228,0.17348942,65953.0,65939.0,0.023]
[1721756184229,0.299853,65940.0,65939.0,0.023]
[1721756184434,0.537259,65940.0,65939.0,0.023]
[1721756184591,0.537259,65940.0,65934.0,0.023]
[1721756184592,0.151658,65938.0,65934.0,0.023]
[1721756184973,0.385606,65940.0,65935.0,0.12594011]
[1721756184974,0.002794,65939.0,65935.0,0.12594011]
[1721756185121,0.151658,65938.0,65936.0,0.023]
[1721756185322,0.151658,65938.0,65937.0,0.1259401]
[1721756185522,0.151658,65938.0,65937.0,0.1489401]
[1721756185523,0.758288,65938.0,65937.0,0.1489401]
[1721756186126,0.151657,65938.0,65937.0,0.1489401]
[1721756186324,0.303305,65941.0,65937.0,0.1489401]
[1721756186526,0.151657,65938.0,65937.0,0.025]
[1721756186749,0.151657,65938.0,65937.0,0.15094096]
[1721756187222,0.151657,65938.0,65937.0,0.15494096]
[1721756187367,0.303306,65940.0,65937.0,0.15494096]
[1721756187567,0.303305,65941.0,65938.0,0.14894096]
[1721756187568,0.454965,65939.0,65938.0,0.14894096]
[1721756187782,0.454965,65939.0,65938.0,0.14894063]
[1721756187982,0.303305,65941.0,65938.0,0.14894082]
[1721756188214,0.45496,65940.0,65939.0,0.12594082]
[1721756188372,0.45496,65940.0,65939.0,0.14894082]
[1721756188588,0.758267,65940.0,65939.0,0.14894082]
[1721756189226,0.759267,65940.0,65939.0,0.14894082]
[1721756189422,1.46588,65940.0,65939.0,0.12594082]
[1721756189640,0.0768,65939.0,65920.0,0.0655]
[1721756189865,0.151694,65922.0,65921.0,0.12595644]
[1721756190049,0.0626,65931.0,65921.0,0.12595644]
[1721756190263,0.0626,65931.0,65920.0,0.0655]
[1721756190264,0.0626,65931.0,65922.0,0.12595644]
[1721756190465,0.45507,65924.0,65923.0,0.12596226]
[1721756191130,0.001,65922.0,65921.0,0.008]
[1721756191339,0.001,65922.0,65921.0,0.73607168]
[1721756191466,0.001,65922.0,65921.0,0.43267868]
[1721756191667,0.01438391,65922.0,65921.0,0.45567868]
[1721756191929,0.01438391,65922.0,65921.0,0.25251064]
[1721756192857,0.01438391,65922.0,65921.0,0.15696277]
[1721756193032,0.01438391,65922.0,65921.0,0.14896277]
[1721756193033,0.01338391,65922.0,65921.0,0.14896277]
[1721756193562,0.15169,65924.0,65923.0,0.004]
[1721756193772,0.008,65931.0,65923.0,0.004]
[1721756193773,0.008,65931.0,65923.0,0.14896277]
[1721756193922,0.151684,65927.0,65924.0,0.15014172]
[1721756194121,0.151684,65927.0,65925.0,0.023]
[1721756194322,0.151684,65927.0,65926.0,0.12596026]
[1721756194536,0.151684,65927.0,65926.0,0.14896026]
[1721756194963,0.151684,65927.0,65926.0,0.20936459]
[1721756195365,0.151684,65927.0,65926.0,0.14896026]
[1721756195366,0.758414,65927.0,65926.0,0.14896026]
[1721756196486,0.759414,65927.0,65926.0,0.14896026]
[1721756196687,0.759414,65927.0,65926.0,0.15096026]
[1721756197636,0.456049,65927.0,65926.0,0.15096128]
[1721756197853,0.456049,65927.0,65926.0,0.21156601]
[1721756197991,0.456049,65927.0,65926.0,0.15096128]
[1721756198838,0.001,65927.0,65926.0,0.15096128]
[1721756199071,0.001,65927.0,65926.0,0.30264628]
[1721756199276,0.001,65927.0,65926.0,0.15096128]
[1721756199687,0.001,65927.0,65926.0,1.1965397]
[1721756199885,0.001,65927.0,65926.0,1.85769624]
[1721756200524,0.001,65927.0,65926.0,1.80769624]
[1721756200685,0.151654,65940.0,65935.0,0.151663]
[1721756201008,0.151655,65939.0,65936.0,0.14893654]
[1721756201160,0.151655,65939.0,65937.0,0.12593654]
[1721756201369,0.151655,65939.0,65938.0,0.14893654]
[1721756202082,0.152482,65941.0,65938.0,0.14893654]
[1721756202288,0.152482,65941.0,65939.0,0.14893654]
[1721756202495,0.758265,65940.0,65939.0,0.023]
[1721756202876,0.01331934,65940.0,65939.0,0.1259406]
[1721756203074,0.01331934,65940.0,65939.0,0.37006113]
[1721756203260,0.01331934,65940.0,65939.0,0.67337113]
[1721756203607,0.00083,65941.0,65940.0,0.151653]
[1721756203805,0.00083,65941.0,65940.0,0.6038996]
[1721756204213,0.00083,65941.0,65940.0,1.41992031]
[1721756204420,0.01414934,65941.0,65940.0,1.56688296]
[1721756204626,0.00083,65941.0,65940.0,1.56688296]
[1721756205375,0.00083,65941.0,65940.0,1.61688296]
[1721756205590,0.00083,65941.0,65940.0,2.09598151]
[1721756206046,0.00083,65941.0,65940.0,2.09798151]
[1721756206253,0.00083,65941.0,65940.0,2.09598151]
[1721756208030,0.00383,65941.0,65940.0,2.42696433]
[1721756208229,0.00383,65941.0,65940.0,2.50266433]
[1721756208773,0.00383,65941.0,65940.0,2.50466433]
[1721756209767,0.00383,65941.0,65940.0,2.80797033]
[1721756210440,0.00383,65941.0,65940.0,2.80743819]
[1721756210724,0.00383,65941.0,65940.0,2.80744061]
[1721756210928,0.002794,65965.0,65960.0,0.303212]
[1721756211137,0.36726,65972.0,65961.0,0.12588241]
[1721756211343,0.151582,65971.0,65966.0,0.151592]
[1721756211791,0.21568,65972.0,65967.0,0.15159]
[1721756212011,0.0641,65972.0,65968.0,0.0757979]
[1721756212222,0.0641,65972.0,65967.0,0.303179]
[1721756212395,0.0641,65972.0,65968.0,0.151587]
[1721756212868,0.0641,65972.0,65969.0,0.151586]
[1721756213094,0.151571,65976.0,65970.0,0.326163]
[1721756213315,0.151571,65976.0,65971.0,0.2145136]
[1721756213561,0.1,65975.0,65972.0,0.174578]
[1721756213785,0.251574,65975.0,65972.0,0.023]
[1721756214039,0.403146,65975.0,65972.0,0.023]
[1721756214226,0.151575,65974.0,65972.0,0.023]
[1721756214365,0.151575,65974.0,65970.0,0.023]
[1721756214602,0.1,65975.0,65970.0,0.37996615]
[1721756214798,0.251573,65975.0,65970.0,0.37996615]
[1721756215007,0.251573,65975.0,65971.0,0.151581]
[1721756215214,0.0814,65978.0,65970.0,0.37996615]
[1721756215215,0.0814,65978.0,65972.0,0.023]
[1721756215395,0.0663,65982.0,65973.0,0.04029761]
[1721756215396,0.1,65979.0,65973.0,0.04029761]
[1721756215592,0.151559,65981.0,65976.0,0.151569]
[1721756215816,0.1,65980.0,65977.0,0.023]
[1721756216023,0.04530346,65983.0,65977.0,0.023]
[1721756216289,0.04530346,65983.0,65982.0,0.151556]
[1721756216505,0.04530346,65983.0,65982.0,0.20441359]
[1721756216726,0.0829,65988.0,65982.0,0.05285759]
[1721756216953,0.0829,65988.0,65984.0,0.151551]
[1721756217219,0.0829,65988.0,65985.0,0.023]
[1721756217220,0.234443,65988.0,65985.0,0.023]
[1721756217407,0.0829,65988.0,65985.0,0.023]
[1721756217639,0.151545,65987.0,65985.0,0.023]
[1721756217849,0.01138327,65987.0,65983.0,0.023]
[1721756218063,0.01138327,65987.0,65985.0,0.151549]
[1721756218284,0.16292827,65987.0,65986.0,0.023]
[1721756218597,1.02549769,65987.0,65986.0,0.023]
[1721756218801,1.02549769,65987.0,65985.0,0.024]
[1721756218802,1.060829,65986.0,65985.0,0.024]
[1721756218965,1.160829,65986.0,65985.0,0.024]
[1721756219439,1.17221227,65986.0,65985.0,0.024]
[1721756219889,1.17221227,65986.0,65985.0,0.025]
[1721756220344,1.17221227,65986.0,65985.0,0.002]
[1721756220590,1.060846,65985.0,65984.0,0.023]
[1721756221228,1.07222927,65985.0,65984.0,0.023]
[1721756221927,1.47532827,65985.0,65984.0,0.023]
[1721756222336,1.17222927,65985.0,65984.0,0.023]
[1721756222686,1.17522927,65985.0,65984.0,0.023]
[1721756225414,1.02368027,65985.0,65984.0,0.023]
[1721756225654,1.47832827,65985.0,65984.0,0.023]
[1721756225859,1.17522927,65985.0,65984.0,0.023]
[1721756226262,1.47832827,65985.0,65984.0,0.023]
[1721756226506,1.17522927,65985.0,65984.0,0.023]
[1721756226871,1.47832827,65985.0,65984.0,0.023]
[1721756227066,1.55772827,65985.0,65984.0,0.023]
[1721756227546,1.62342827,65985.0,65984.0,0.023]
[1721756227985,1.32032927,65985.0,65984.0,0.023]
[1721756229134,0.87213027,65985.0,65984.0,0.023]
[1721756229339,0.87213027,65985.0,65978.0,0.0665]
[1721756229340,0.151562,65980.0,65979.0,0.023]
[1721756229605,0.151562,65980.0,65979.0,0.03741]
[1721756229606,0.151561,65980.0,65979.0,0.03741]
[1721756229820,0.01150265,65980.0,65979.0,0.03741]
[1721756230038,0.46618565,65980.0,65979.0,0.023]
[1721756230265,0.454683,65980.0,65979.0,0.023]
[1721756230482,0.46618565,65980.0,65979.0,0.023]
[1721756231180,0.46618565,65980.0,65979.0,0.026]
[1721756231400,0.01150265,65980.0,65979.0,0.17301991]
[1721756231615,0.01150265,65980.0,65979.0,0.62770891]
[1721756231859,0.003,65985.0,65982.0,0.151556]
[1721756232071,0.003,65985.0,65983.0,0.023]
[1721756232332,0.01150265,65984.0,65983.0,0.12503199]
[1721756232932,0.757757,65984.0,65983.0,0.023]
[1721756233133,0.757757,65984.0,65970.0,0.04296274]
[1721756233134,0.454675,65981.0,65980.0,0.023]
[1721756233459,0.454675,65981.0,65962.0,0.25]
[1721756233460,0.151572,65975.0,65974.0,0.023]
[1721756233658,0.07348942,65981.0,65972.0,0.023]
[1721756233884,0.457477,65980.0,65979.0,0.004]
[1721756234086,0.151561,65980.0,65979.0,0.027]
[1721756234290,0.00084,65986.0,65981.0,0.151558]
[1721756234420,0.01150265,65980.0,65979.0,0.174563]
[1721756234622,0.01150265,65980.0,65979.0,0.88975912]
[1721756234968,0.00084,65986.0,65985.0,0.151549]
[1721756235227,0.00084,65986.0,65985.0,0.235149]
[1721756235475,0.00084,65986.0,65985.0,0.44543306]
[1721756235725,0.01234747,65986.0,65985.0,0.44543306]
[1721756235955,0.01234747,65986.0,65985.0,0.74853206]
[1721756236127,0.01234747,65986.0,65985.0,0.97545197]
[1721756236382,0.00084,65986.0,65985.0,1.27855097]
[1721756236583,0.00384,65986.0,65985.0,1.27855097]
[1721756236791,0.00384,65986.0,65985.0,1.15270618]
[1721756237006,0.00384,65986.0,65985.0,1.2785418]
[1721756237204,0.002794,65993.0,65992.0,0.12952341]
[1721756237462,0.00854,65994.0,65993.0,0.50421641]
[1721756237694,0.00854,65994.0,65993.0,0.84357194]
[1721756237935,0.00854,65994.0,65993.0,1.14663394]
[1721756238178,0.00854,65994.0,65993.0,0.34386662]
[1721756238416,0.00854,65994.0,65993.0,0.12583562]
[1721756238417,0.46350159,65994.0,65993.0,0.12583562]
[1721756238648,0.76655859,65994.0,65993.0,0.12583562]
[1721756238880,0.77827848,65994.0,65993.0,0.12583562]
[1721756239116,0.47522148,65994.0,65993.0,0.12583562]
[1721756239364,0.77827848,65994.0,65993.0,0.12583562]
[1721756239593,0.00037659,65983.0,65980.0,0.0785]
[1721756239843,0.00037659,65982.0,65979.0,0.0652]
[1721756240074,0.00037659,65977.0,65970.0,0.4765]
[1721756240271,0.01169922,65982.0,65970.0,0.5417]
[1721756240272,0.00037659,65971.0,65970.0,0.5417]
[1721756240688,0.00037659,65971.0,65970.0,0.693284]
[1721756240903,0.00037659,65971.0,65970.0,0.66598204]
[1721756241342,0.01203845,65971.0,65970.0,0.66598204]
[1721756241544,0.00037659,65971.0,65970.0,0.79184525]
[1721756241751,0.01203845,65971.0,65970.0,0.79184525]
[1721756241960,0.01203845,65971.0,65970.0,0.94342925]
[1721756242171,0.01166186,65971.0,65970.0,1.24503316]
[1721756242411,0.00037659,65975.0,65970.0,1.24503316]
[1721756242617,0.00037659,65975.0,65972.0,0.151579]
[1721756242832,0.00037659,65975.0,65973.0,0.27743921]
[1721756243039,0.00037659,65975.0,65974.0,0.14885686]
[1721756243242,0.00037659,65976.0,65974.0,0.30042886]
[1721756243450,0.00037659,65976.0,65975.0,0.27281951]
[1721756243658,0.00037659,65976.0,65975.0,0.29581951]
[1721756243857,0.01201253,65976.0,65975.0,0.29581951]
[1721756244081,0.00037659,65976.0,65975.0,0.29581951]
[1721756244287,0.01163594,65976.0,65975.0,0.89755642]
[1721756244491,0.00037659,65983.0,65981.0,0.151558]
[1721756244664,0.00037659,65984.0,65982.0,0.14885686]
[1721756244899,0.15192759,65984.0,65983.0,0.12585686]
[1721756245107,0.15192759,65984.0,65983.0,0.14885686]
[1721756245314,0.303088,65988.0,65983.0,0.21545686]
[1721756245315,0.00037659,65988.0,65983.0,0.21545686]
[1721756245520,0.00037659,65984.0,65983.0,0.241154]
[1721756245729,0.00037659,65984.0,65983.0,0.51854621]
[1721756245928,0.00037659,65984.0,65983.0,0.67010021]
[1721756246131,0.00037659,65984.0,65983.0,0.0896]
[1721756246338,0.15192759,65984.0,65983.0,0.21543883]
[1721756246549,0.45503059,65984.0,65983.0,0.14883883]
[1721756246752,0.45603059,65984.0,65983.0,0.14883883]
[1721756247161,0.75913359,65984.0,65983.0,0.14983883]
[1721756247363,0.75813359,65984.0,65983.0,0.14983883]
[1721756247537,0.45503059,65984.0,65983.0,0.15183883]
[1721756247748,0.0102582,65984.0,65983.0,0.76285062]
[1721756247952,0.002794,65985.0,65984.0,0.151551]
[1721756248160,0.00037659,65991.0,65990.0,0.151538]
[1721756248362,0.00891659,65994.0,65993.0,0.151531]
[1721756248531,0.00891659,65994.0,65993.0,0.14883883]
[1721756248747,0.01917479,65994.0,65993.0,0.14883883]
[1721756248954,0.01917479,65994.0,65993.0,0.30036983]